[Event "Skalica Open 2019"]
[Site "Skalica"]
[Date "2019.08.26"]
[Round "3.11"]
[White "Karas, Marek"]
[Black "Skalsky, Alexandr"]
[Result "1/2-1/2"]
[ECO "A04"]
[WhiteElo "2233"]
[BlackElo "2128"]
[Annotator "NA"]
[PlyCount "89"]
[EventDate "2019.08.25"]
[EventType "swiss"]
[EventCountry "SVK"]
[SourceTitle "playchess.com"]
[Source "ChessBase"]
[SourceQuality "1"]
[TimeControl "40/5400+30:1800+30"]

1. Nf3 {[%emt 0:00:25]} g6 {[%emt 0:00:00]} 2. e4 {[%emt 0:00:26]} Bg7 {[%emt 0:00:43]} 3. d4 {[%emt 0:00:07]} d6 {[%emt 0:00:03]} 4. Bc4 {[%emt 0:00:07]} Nf6 {[%emt 0:12:37]} 5. Qe2 {[%emt 0:00:30]} Nc6 {[%emt 0:00:45]} 6. c3 {[%emt 0:05:23]} Bg4 {[%emt 0:06:18]} 7. h3 {[%emt 0:02:15]} Bxf3 {[%emt 0:02:49]} 8. Qxf3 {[%emt 0:00:09]} e5 {[%emt 0:08:13]} 9. d5 {[%emt 0:00:23]} Ne7 {[%emt 0:00:24]} 10. Bd3 {[%emt 0:02:11]} O-O {[%emt 0:06:34]} 11. c4 {[%emt 0:03:02]} c5 {[%emt 0:05:57]} 12. Nc3 {[%emt 0:02:55]} Kh8 {[%emt 0:06:14]} 13. g4 {[%emt 0:03:27]} Nfg8 {[%emt 0:13:24]} 14. Qg2 {[%emt 0:15:17]} f5 {[%emt 0:08:05]} 15. f3 {[%emt 0:01:03]} Nf6 {[%emt 0:06:20]} 16. Be3 {[%emt 0:03:56]} f4 {[%emt 0:09:09]} 17. Bd2 {[%emt 0:02:01]} a5 {[%emt 0:03:05]} 18. Kf2 {[%emt 0:01:00]} Ra6 {[%emt 0:03:30]} 19. Qf1 {[%emt 0:00:23]} Qa8 {[%emt 0:00:23]} 20. Bc2 {[%emt 0:01:39]} Qa7 {[%emt 0:01:05]} 21. Ba4 {[%emt 0:00:52]} Qb6 {[%emt 0:00:47]} 22. Qc1 {[%emt 0:00:49]} Rfa8 {[%emt 0:00:31]} 23. Kg2 {[%emt 0:00:21]} Qd8 {[%emt 0:01:10]} 24. a3 {[%emt 0:01:55]} Nc8 {[%emt 0:01:07]} 25. b3 {[%emt 0:02:23]} Nb6 {[%emt 0:00:21]} 26. Bb5 {[%emt 0:01:30]} R6a7 {[%emt 0:00:00]} 27. Qb2 {[%emt 0:00:27]} Nbd7 {[%emt 0:01:11]} 28. Be1 {[%emt 0:02:27]} Ne8 {[%emt 0:00:38]} 29. Bf2 {[%emt 0:01:07]} Nc7 {[%emt 0:01:33]} 30. Ra2 {[%emt 0:02:13]} Bf8 {[%emt 0:00:59]} 31. Rha1 {[%emt 0:00:44]} Nxb5 {[%emt 0:00:35]} 32. Nxb5 {[%emt 0:00:12]} Ra6 {[%emt 0:00:01]} 33. Be1 {[%emt 0:00:54]} Nb6 {[%emt 0:01:03]} 34. Qe2 {[%emt 0:01:51]} Nd7 {[%emt 0:00:29]} 35. Rc2 {[%emt 0:06:48]} Kg8 {[%emt 0:00:18]} 36. Kh1 {[%emt 0:04:18]} Be7 {[%emt 0:00:27]} 37. Qg2 {[%emt 0:01:25]} Kf7 {[%emt 0:00:37]} 38. Qh2 {[%emt 0:03:03]} Kg8 {[%emt 0:01:00]} 39. h4 {[%emt 0:00:43]} h6 {[%emt 0:00:29]} 40. Qh3 {[%emt 0:01:30]} Nf8 {[%emt 0:00:21]} 41. h5 {[%emt 0:34:31]} g5 {[%emt 0:30:29]} 42. Qf1 {[%emt 0:00:34]} Nd7 {[%emt 0:00:00]} 43. Qd3 {[%emt 0:00:00]} Qc8 {[%emt 0:00:00]} 44. Rb1 {[%emt 0:00:00]} Bd8 {[%emt 0:00:00]} 45. a4 {[%emt 0:00:00]} 1/2-1/2

[Event "Skalica Open 2019"]
[Site "Skalica"]
[Date "2019.08.26"]
[Round "3.12"]
[White "Rakovsky, Jakub"]
[Black "Bochnicka, Vladimir"]
[Result "0-1"]
[ECO "B34"]
[WhiteElo "1765"]
[BlackElo "2193"]
[Annotator "NA"]
[PlyCount "94"]
[EventDate "2019.08.25"]
[EventType "swiss"]
[EventCountry "SVK"]
[SourceTitle "playchess.com"]
[Source "ChessBase"]
[SourceQuality "1"]
[TimeControl "40/5400+30:1800+30"]

1. e4 {[%emt 0:04:52]} c5 {[%emt 0:01:06]} 2. Nf3 {[%emt 0:01:35]} Nc6 {[%emt 0:00:09]} 3. d4 {[%emt 0:01:30]} cxd4 {[%emt 0:00:50]} 4. Nxd4 {[%emt 0:00:11]} Nf6 {[%emt 0:00:09]} 5. Nc3 {[%emt 0:00:23]} e5 {[%emt 0:00:08]} 6. Nf5 {[%emt 0:08:41]} d5 {[%emt 0:04:44]} 7. exd5 {[%emt 0:03:24]} Bxf5 {[%emt 0:00:11]} 8. dxc6 {[%emt 0:00:11]} Qxd1+ {[%emt 0:01:02]} 9. Kxd1 {[%emt 0:00:32]} bxc6 {[%emt 0:00:42]} 10. Be3 {[%emt 0:03:49]} Ng4 {[%emt 0:06:18]} 11. Bd3 {[%emt 0:03:29]} Rd8 {[%emt 0:02:08]} 12. Ke2 {[%emt 0:00:27]} Nxe3 {[%emt 0:00:07]} 13. fxe3 {[%emt 0:00:07]} Bg4+ {[%emt 0:02:07]} 14. Kf2 {[%emt 0:08:45]} Be7 {[%emt 0:03:06]} 15. h3 {[%emt 0:00:48]} Be6 {[%emt 0:01:22]} 16. Rad1 {[%emt 0:02:59]} f5 {[%emt 0:03:12]} 17. Be2 {[%emt 0:08:34]} O-O {[%emt 0:02:33]} 18. Rxd8 {[%emt 0:06:11]} Rxd8 {[%emt 0:03:19]} 19. Rd1 {[%emt 0:01:34]} Kf7 {[%emt 0:00:56]} 20. Rxd8 {[%emt 0:02:38]} Bxd8 {[%emt 0:00:51]} 21. b3 {[%emt 0:01:30]} Ke7 {[%emt 0:01:41]} 22. Na4 {[%emt 0:01:35]} Kd6 {[%emt 0:04:47]} 23. c4 {[%emt 0:00:56]} e4 {[%emt 0:00:32]} 24. Bf1 {[%emt 0:04:05]} g5 {[%emt 0:01:55]} 25. g3 {[%emt 0:00:30]} Bf6 {[%emt 0:00:54]} 26. Bg2 {[%emt 0:02:42]} Be5 {[%emt 0:05:24]} 27. h4 {[%emt 0:05:56]} gxh4 {[%emt 0:02:09]} 28. gxh4 {[%emt 0:00:01]} Bc8 {[%emt 0:02:50]} 29. Bh3 {[%emt 0:07:04]} Bf6 {[%emt 0:00:56]} 30. h5 {[%emt 0:02:17]} Ke5 {[%emt 0:01:20]} 31. Nc3 Bh4+ {[%emt 0:00:37]} 32. Kg2 {[%emt 0:02:52]} Bg5 {[%emt 0:00:15]} 33. Nd1 {[%emt 0:03:14]} Be6 {[%emt 0:00:15]} 34. Kf2 {[%emt 0:02:13]} Bf7 {[%emt 0:00:35]} 35. Bg2 {[%emt 0:01:50]} Bxh5 {[%emt 0:00:20]} 36. Nc3 {[%emt 0:00:03]} Bg4 {[%emt 0:02:42]} 37. Ne2 {[%emt 0:00:18]} h5 {[%emt 0:00:18]} 38. Ng1 {[%emt 0:00:33]} f4 {[%emt 0:02:18]} 39. exf4+ {[%emt 0:00:28]} Bxf4 {[%emt 0:00:09]} 40. Ne2 {[%emt 0:00:16]} h4 {[%emt 0:00:56]} 41. Nxf4 {[%emt 0:31:00]} Kxf4 {[%emt 0:30:03]} 42. c5 {[%emt 0:00:27]} h3 {[%emt 0:00:08]} 43. Bh1 {[%emt 0:00:04]} e3+ {[%emt 0:00:06]} 44. Ke1 {[%emt 0:00:07]} Bf3 {[%emt 0:00:06]} 45. Bxf3 {[%emt 0:00:57]} Kxf3 {[%emt 0:00:07]} 46. Kf1 {[%emt 0:00:03]} h2 {[%emt 0:00:08]} 47. Ke1 {[%emt 0:00:04]} h1=Q# {[%emt 0:00:09]} 0-1

[Event "Skalica Open 2019"]
[Site "Skalica"]
[Date "2019.08.26"]
[Round "3.13"]
[White "Londin, Simon"]
[Black "Matejovic, Juraj"]
[Result "0-1"]
[ECO "B23"]
[WhiteElo "2038"]
[BlackElo "2237"]
[Annotator "NA"]
[PlyCount "52"]
[EventDate "2019.08.25"]
[EventType "swiss"]
[EventCountry "SVK"]
[SourceTitle "playchess.com"]
[Source "ChessBase"]
[SourceQuality "1"]
[TimeControl "40/5400+30:1800+30"]

1. e4 {[%emt 0:00:00]} c5 {[%emt 0:00:00]} 2. Nc3 {[%emt 0:00:00]} e6 {[%emt 0:00:47]} 3. f4 {[%emt 0:00:00]} Nc6 {[%emt 0:04:00]} 4. Nf3 {[%emt 0:00:00]} d6 {[%emt 0:01:26]} 5. Bb5 {[%emt 0:00:21]} Bd7 {[%emt 0:03:26]} 6. d3 {[%emt 0:03:52]} Nge7 {[%emt 0:07:39]} 7. Bc4 {[%emt 0:03:05]} Na5 {[%emt 0:02:49]} 8. Bb3 {[%emt 0:00:19]} Nxb3 {[%emt 0:18:09]} 9. axb3 {[%emt 0:01:19]} Nc6 {[%emt 0:00:45]} 10. O-O {[%emt 0:06:02]} Be7 {[%emt 0:01:38]} 11. e5 {[%emt 0:07:11]} d5 {[%emt 0:11:21]} 12. Ne1 {[%emt 0:19:48]} O-O {[%emt 0:11:33]} 13. Qh5 {[%emt 0:04:11]} f5 {[%emt 0:02:12]} 14. Qe2 {[%emt 0:15:05]} a6 {[%emt 0:02:51]} 15. Nf3 {[%emt 0:01:45]} b5 {[%emt 0:01:35]} 16. Bd2 {[%emt 0:00:34]} Qc7 {[%emt 0:03:11]} 17. Rfc1 {[%emt 0:00:24]} Rfb8 {[%emt 0:01:49]} 18. Nd1 {[%emt 0:00:18]} Be8 {[%emt 0:02:17]} 19. Ne1 {[%emt 0:02:46]} Nd4 {[%emt 0:01:44]} 20. Qf2 {[%emt 0:00:45]} Bh5 {[%emt 0:00:28]} 21. Be3 {[%emt 0:00:25]} Ne2+ {[%emt 0:00:19]} 22. Kh1 {[%emt 0:04:22]} Nxc1 {[%emt 0:00:25]} 23. Rxc1 {[%emt 0:00:03]} a5 {[%emt 0:02:36]} 24. Qd2 {[%emt 0:02:24]} a4 {[%emt 0:00:46]} 25. Bg1 {[%emt 0:00:41]} axb3 {[%emt 0:00:58]} 26. cxb3 {[%emt 0:00:02]} Qa5 {[%emt 0:00:19]} 0-1

[Event "Skalica Open 2019"]
[Site "Skalica"]
[Date "2019.08.26"]
[Round "3.14"]
[White "Khmelev, Mikhail"]
[Black "Gasa, Patrik"]
[Result "1-0"]
[ECO "B28"]
[WhiteElo "2021"]
[BlackElo "2187"]
[Annotator "NA"]
[PlyCount "69"]
[EventDate "2019.08.25"]
[EventType "swiss"]
[EventCountry "SVK"]
[SourceTitle "playchess.com"]
[Source "ChessBase"]
[SourceQuality "1"]
[TimeControl "40/5400+30:1800+30"]

1. e4 {[%emt 0:00:00]} c5 {[%emt 0:02:36]} 2. Nf3 {[%emt 0:00:00]} a6 {[%emt 0:00:50]} 3. c3 {[%emt 0:00:34]} d5 {[%emt 0:03:21]} 4. exd5 {[%emt 0:00:12]} Qxd5 {[%emt 0:00:04]} 5. d4 {[%emt 0:00:06]} e6 {[%emt 0:04:01]} 6. Be2 {[%emt 0:00:20]} Nf6 {[%emt 0:02:13]} 7. O-O {[%emt 0:00:09]} Nc6 {[%emt 0:03:20]} 8. Bf4 {[%emt 0:00:14]} Be7 {[%emt 0:02:22]} 9. Ne5 {[%emt 0:00:13]} cxd4 {[%emt 0:25:49]} 10. Bf3 {[%emt 0:01:53]} Qb5 {[%emt 0:01:47]} 11. Nxc6 {[%emt 0:03:57]} bxc6 {[%emt 0:00:24]} 12. Qxd4 {[%emt 0:01:27]} c5 {[%emt 0:05:53]} 13. Qd2 {[%emt 0:00:47]} Bb7 {[%emt 0:21:49]} 14. Na3 {[%emt 0:00:33]} Qb6 {[%emt 0:03:47]} 15. Nc4 {[%emt 0:00:05]} Qa7 {[%emt 0:04:11]} 16. Bxb7 {[%emt 0:00:21]} Qxb7 {[%emt 0:00:02]} 17. a4 {[%emt 0:01:04]} O-O {[%emt 0:06:40]} 18. Qe2 {[%emt 0:00:05]} Rad8 {[%emt 0:04:02]} 19. Rfd1 {[%emt 0:00:09]} Rxd1+ {[%emt 0:02:22]} 20. Rxd1 {[%emt 0:00:05]} Rd8 {[%emt 0:00:15]} 21. Rxd8+ {[%emt 0:00:56]} Bxd8 {[%emt 0:00:01]} 22. h3 {[%emt 0:00:45]} Be7 {[%emt 0:00:40]} 23. Kh2 {[%emt 0:02:51]} h6 {[%emt 0:01:47]} 24. Be5 {[%emt 0:00:22]} Qd7 {[%emt 0:03:07]} 25. Nb6 {[%emt 0:01:58]} Qb7 {[%emt 0:00:03]} 26. Nc4 {[%emt 0:01:22]} Qd7 {[%emt 0:00:54]} 27. b3 {[%emt 0:00:06]} Nd5 {[%emt 0:00:31]} 28. Qc2 {[%emt 0:00:27]} Bf6 {[%emt 0:00:37]} 29. Bxf6 {[%emt 0:00:10]} Nxf6 {[%emt 0:00:30]} 30. Qd2 {[%emt 0:01:44]} Qb7 {[%emt 0:00:29]} 31. Qd8+ {[%emt 0:00:43]} Kh7 {[%emt 0:00:12]} 32. Qd3+ {[%emt 0:00:48]} Kg8 {[%emt 0:00:06]} 33. Qd8+ {[%emt 0:01:39]} Kh7 {[%emt 0:00:10]} 34. Qb6 {[%emt 0:00:12]} Qxb6 {[%emt 0:01:31]} 35. Nxb6 {[%emt 0:00:06]} 1-0

[Event "Skalica Open 2019"]
[Site "Skalica"]
[Date "2019.08.26"]
[Round "3.15"]
[White "Husek, Martin"]
[Black "Benes, Miroslav"]
[Result "1-0"]
[ECO "C50"]
[WhiteElo "2182"]
[BlackElo "2107"]
[Annotator "NA"]
[PlyCount "71"]
[EventDate "2019.08.25"]
[EventType "swiss"]
[EventCountry "SVK"]
[SourceTitle "playchess.com"]
[Source "ChessBase"]
[SourceQuality "1"]
[TimeControl "40/5400+30:1800+30"]

1. e4 {[%emt 0:00:00]} e5 {[%emt 0:00:00]} 2. Nf3 {[%emt 0:00:00]} Nc6 {[%emt 0:00:00]} 3. Bc4 {[%emt 0:00:01]} Nf6 {[%emt 0:00:03]} 4. d3 {[%emt 0:00:16]} Bc5 {[%emt 0:00:06]} 5. O-O {[%emt 0:00:09]} d6 {[%emt 0:01:17]} 6. c3 {[%emt 0:00:12]} a6 {[%emt 0:00:06]} 7. a4 {[%emt 0:00:54]} Ba7 {[%emt 0:01:02]} 8. a5 {[%emt 0:06:24]} h6 {[%emt 0:03:06]} 9. Re1 {[%emt 0:02:02]} O-O {[%emt 0:03:30]} 10. Nbd2 {[%emt 0:09:03]} Kh8 {[%emt 0:02:54]} 11. h3 {[%emt 0:07:28]} Ng8 {[%emt 0:09:44]} 12. Nf1 {[%emt 0:18:43]} f5 {[%emt 0:03:10]} 13. exf5 {[%emt 0:04:24]} Bxf5 {[%emt 0:00:47]} 14. Ng3 {[%emt 0:02:35]} Bd7 {[%emt 0:07:57]} 15. Be3 {[%emt 0:01:27]} Bxe3 {[%emt 0:03:42]} 16. Rxe3 {[%emt 0:01:25]} Nge7 {[%emt 0:08:48]} 17. Qb3 {[%emt 0:06:15]} Rb8 {[%emt 0:05:52]} 18. d4 {[%emt 0:12:19]} exd4 {[%emt 0:11:25]} 19. cxd4 {[%emt 0:01:16]} Nf5 {[%emt 0:06:51]} 20. Nxf5 {[%emt 0:00:26]} Rxf5 {[%emt 0:00:33]} 21. d5 {[%emt 0:07:39]} Rxf3 {[%emt 0:09:07]} 22. Rxf3 {[%emt 0:00:10]} Nd4 {[%emt 0:00:22]} 23. Qd3 {[%emt 0:00:07]} Nxf3+ {[%emt 0:00:11]} 24. Qxf3 {[%emt 0:00:07]} Qg5 {[%emt 0:07:50]} 25. Bd3 {[%emt 0:00:57]} Re8 {[%emt 0:01:10]} 26. Qf7 {[%emt 0:00:35]} Rd8 {[%emt 0:02:17]} 27. Re1 {[%emt 0:00:35]} Bb5 {[%emt 0:03:51]} 28. Bxb5 {[%emt 0:08:10]} axb5 {[%emt 0:00:01]} 29. Qxc7 {[%emt 0:01:47]} Rf8 {[%emt 0:05:41]} 30. Qxd6 {[%emt 0:00:12]} Rf6 {[%emt 0:01:16]} 31. Qe5 {[%emt 0:03:56]} Qd2 {[%emt 0:01:19]} 32. Re2 {[%emt 0:01:01]} Qxa5 {[%emt 0:01:10]} 33. d6 {[%emt 0:00:11]} Qd8 {[%emt 0:00:45]} 34. Qe8+ {[%emt 0:00:18]} Rf8 {[%emt 0:00:24]} 35. d7 {[%emt 0:01:25]} Kg8 {[%emt 0:00:22]} 36. Qxd8 {[%emt 0:00:32]} 1-0

[Event "Skalica Open 2019"]
[Site "Skalica"]
[Date "2019.08.26"]
[Round "3.16"]
[White "Lhotska, Anna"]
[Black "Kantorik, Marian"]
[Result "0-1"]
[ECO "A13"]
[WhiteElo "1966"]
[BlackElo "2164"]
[Annotator "NA"]
[PlyCount "110"]
[EventDate "2019.08.25"]
[EventType "swiss"]
[EventCountry "SVK"]
[SourceTitle "playchess.com"]
[Source "ChessBase"]
[SourceQuality "1"]
[TimeControl "40/5400+30:1800+30"]

1. c4 {[%emt 0:05:53]} e6 {[%emt 0:00:33]} 2. Nc3 {[%emt 0:03:17]} c5 {[%emt 0:00:58]} 3. Nf3 {[%emt 0:03:46]} Nf6 {[%emt 0:00:52]} 4. e3 {[%emt 0:01:04]} Be7 {[%emt 0:00:41]} 5. Be2 {[%emt 0:04:25]} O-O {[%emt 0:00:18]} 6. O-O {[%emt 0:01:39]} d6 {[%emt 0:04:40]} 7. a3 {[%emt 0:10:12]} b6 {[%emt 0:04:31]} 8. b4 {[%emt 0:06:35]} Nbd7 {[%emt 0:01:58]} 9. d4 {[%emt 0:06:38]} Bb7 {[%emt 0:06:10]} 10. Bb2 {[%emt 0:09:53]} cxd4 {[%emt 0:05:14]} 11. exd4 {[%emt 0:00:48]} a6 {[%emt 0:00:53]} 12. Nd2 {[%emt 0:10:08]} Rc8 {[%emt 0:03:01]} 13. f4 {[%emt 0:01:37]} Re8 {[%emt 0:07:56]} 14. Bd3 {[%emt 0:05:19]} Nf8 {[%emt 0:04:03]} 15. Qe1 {[%emt 0:02:38]} g6 {[%emt 0:07:20]} 16. Qf2 {[%emt 0:02:40]} Ng4 {[%emt 0:01:17]} 17. Qe2 {[%emt 0:00:24]} f5 {[%emt 0:00:53]} 18. Nf3 {[%emt 0:01:55]} Bf6 {[%emt 0:05:38]} 19. Nd1 {[%emt 0:01:59]} Qc7 {[%emt 0:01:20]} 20. h3 {[%emt 0:02:28]} Nh6 {[%emt 0:00:08]} 21. Ne3 {[%emt 0:03:42]} Nf7 {[%emt 0:05:31]} 22. Rac1 {[%emt 0:03:19]} Nd7 {[%emt 0:06:53]} 23. Qd2 {[%emt 0:06:25]} Qb8 {[%emt 0:01:53]} 24. Bb1 {[%emt 0:02:12]} Rcd8 {[%emt 0:02:05]} 25. d5 {[%emt 0:01:08]} e5 {[%emt 0:05:00]} 26. fxe5 {[%emt 0:00:16]} dxe5 {[%emt 0:01:26]} 27. Ba2 {[%emt 0:02:01]} Rc8 {[%emt 0:05:28]} 28. Rc2 {[%emt 0:00:40]} Be7 {[%emt 0:03:09]} 29. Rfc1 {[%emt 0:00:33]} Bd6 {[%emt 0:00:27]} 30. Kh1 {[%emt 0:00:41]} Bf8 {[%emt 0:05:53]} 31. Qf2 {[%emt 0:00:35]} Qd6 {[%emt 0:00:30]} 32. Nf1 {[%emt 0:00:36]} Bh6 {[%emt 0:02:20]} 33. Re1 {[%emt 0:00:23]} Rc7 {[%emt 0:02:09]} 34. Rce2 {[%emt 0:00:35]} Bg7 {[%emt 0:00:22]} 35. Bc1 {[%emt 0:00:30]} a5 {[%emt 0:01:10]} 36. bxa5 {[%emt 0:00:29]} bxa5 {[%emt 0:00:05]} 37. a4 {[%emt 0:00:25]} Nc5 {[%emt 0:00:52]} 38. Ba3 {[%emt 0:00:35]} Nd3 {[%emt 0:02:51]} 39. Bxd6 {[%emt 0:00:21]} Nxf2+ {[%emt 0:00:07]} 40. Rxf2 {[%emt 0:00:10]} Nxd6 {[%emt 0:00:02]} 41. Rc2 {[%emt 0:30:42]} Bxd5 {[%emt 0:32:05]} 42. Rd1 {[%emt 0:00:47]} Bxf3 {[%emt 0:00:00]} 43. gxf3 {[%emt 0:00:00]} Nf7 {[%emt 0:00:00]} 44. c5 {[%emt 0:00:00]} Kf8 {[%emt 0:00:00]} 45. Ne3 {[%emt 0:00:00]} Ng5 {[%emt 0:00:00]} 46. Kg2 {[%emt 0:00:00]} Ne6 {[%emt 0:00:00]} 47. c6 {[%emt 0:00:00]} Nd4 {[%emt 0:00:00]} 48. Rc5 {[%emt 0:00:00]} Rxc6 {[%emt 0:00:00]} 49. Rxa5 {[%emt 0:00:00]} f4 {[%emt 0:00:00]} 50. Ra7 {[%emt 0:00:00]} Rb8 {[%emt 0:00:00]} 51. Rf7+ {[%emt 0:00:00]} Ke8 {[%emt 0:00:00]} 52. Rxg7 {[%emt 0:00:00]} Rb2+ {[%emt 0:00:00]} 53. Kh1 {[%emt 0:00:00]} fxe3 {[%emt 0:00:00]} 54. Bd5 {[%emt 0:00:17]} Rcc2 {[%emt 0:00:00]} 55. f4 {[%emt 0:02:07]} exf4 {[%emt 0:00:16]} 0-1

[Event "Skalica Open 2019"]
[Site "Skalica"]
[Date "2019.08.26"]
[Round "3.17"]
[White "Bilczewski, Kacper"]
[Black "Gresova, Zuzana"]
[Result "0-1"]
[ECO "B22"]
[WhiteElo "2116"]
[BlackElo "2008"]
[Annotator "NA"]
[PlyCount "132"]
[EventDate "2019.08.25"]
[EventType "swiss"]
[EventCountry "SVK"]
[SourceTitle "playchess.com"]
[Source "ChessBase"]
[SourceQuality "1"]
[TimeControl "40/5400+30:1800+30"]

1. e4 {[%emt 0:00:00]} c5 {[%emt 0:00:00]} 2. c3 {[%emt 0:00:00]} d5 {[%emt 0:00:00]} 3. exd5 {[%emt 0:00:00]} Qxd5 {[%emt 0:00:00]} 4. d4 {[%emt 0:00:00]} Nf6 {[%emt 0:00:59]} 5. Nf3 {[%emt 0:00:00]} Bg4 {[%emt 0:01:15]} 6. Be2 {[%emt 0:00:00]} e6 {[%emt 0:01:05]} 7. O-O {[%emt 0:00:04]} Bd6 {[%emt 0:00:57]} 8. h3 {[%emt 0:00:41]} Bh5 {[%emt 0:03:17]} 9. c4 {[%emt 0:00:30]} Qc6 {[%emt 0:06:56]} 10. dxc5 {[%emt 0:05:05]} Bxc5 {[%emt 0:03:16]} 11. Nc3 {[%emt 0:01:41]} O-O {[%emt 0:05:16]} 12. Ne5 {[%emt 0:04:05]} Bxe2 {[%emt 0:10:41]} 13. Qxe2 {[%emt 0:00:58]} Qc8 {[%emt 0:01:50]} 14. Bg5 {[%emt 0:07:28]} Nbd7 {[%emt 0:03:05]} 15. Rad1 {[%emt 0:06:03]} a6 {[%emt 0:03:53]} 16. a3 {[%emt 0:02:30]} Re8 {[%emt 0:04:17]} 17. Rd2 {[%emt 0:07:32]} Qc7 {[%emt 0:05:52]} 18. Nxd7 {[%emt 0:01:48]} Nxd7 {[%emt 0:00:15]} 19. Rfd1 {[%emt 0:00:06]} Nf8 {[%emt 0:01:08]} 20. Qg4 {[%emt 0:03:32]} f5 {[%emt 0:08:11]} 21. Qe2 {[%emt 0:04:23]} h6 {[%emt 0:03:55]} 22. Bh4 {[%emt 0:00:47]} g5 {[%emt 0:05:41]} 23. Qh5 {[%emt 0:05:52]} gxh4 {[%emt 0:02:41]} 24. Qxh6 {[%emt 0:01:42]} Qe7 {[%emt 0:03:38]} 25. b4 {[%emt 0:00:11]} Ba7 {[%emt 0:01:39]} 26. Re1 {[%emt 0:02:23]} Qh7 {[%emt 0:01:59]} 27. Qg5+ {[%emt 0:00:16]} Qg7 {[%emt 0:00:31]} 28. Qxg7+ {[%emt 0:05:22]} Kxg7 {[%emt 0:00:09]} 29. Red1 {[%emt 0:00:01]} Rac8 {[%emt 0:03:24]} 30. c5 {[%emt 0:00:16]} Bb8 {[%emt 0:02:58]} 31. Na4 {[%emt 0:00:10]} Bc7 {[%emt 0:00:51]} 32. Nb2 {[%emt 0:00:46]} Rcd8 {[%emt 0:01:05]} 33. Nc4 {[%emt 0:00:03]} Rxd2 {[%emt 0:00:58]} 34. Rxd2 {[%emt 0:00:04]} Rd8 {[%emt 0:00:22]} 35. Rxd8 {[%emt 0:00:14]} Bxd8 {[%emt 0:01:05]} 36. Nd6 {[%emt 0:00:07]} Nd7 {[%emt 0:03:08]} 37. Nxb7 {[%emt 0:00:05]} Bc7 {[%emt 0:00:37]} 38. a4 {[%emt 0:00:32]} Kf7 {[%emt 0:01:59]} 39. b5 {[%emt 0:00:29]} axb5 {[%emt 0:00:28]} 40. axb5 {[%emt 0:00:04]} Ne5 {[%emt 0:01:37]} 41. b6 {[%emt 0:37:49]} Bb8 {[%emt 0:32:48]} 42. Na5 {[%emt 0:00:05]} Nd7 {[%emt 0:01:54]} 43. Nb3 {[%emt 0:02:16]} Kf6 {[%emt 0:02:09]} 44. b7 {[%emt 0:01:59]} Be5 {[%emt 0:00:00]} 45. Kf1 {[%emt 0:00:00]} Bc7 {[%emt 0:00:00]} 46. c6 {[%emt 0:00:00]} Nb8 {[%emt 0:00:00]} 47. Nd4 {[%emt 0:00:00]} Bb6 {[%emt 0:00:00]} 48. Ke2 {[%emt 0:00:00]} Ke7 {[%emt 0:00:00]} 49. f4 {[%emt 0:00:00]} Kd6 {[%emt 0:00:00]} 50. Nf3 {[%emt 0:00:00]} Bd8 {[%emt 0:00:00]} 51. Nd4 {[%emt 0:00:00]} Bc7 {[%emt 0:00:00]} 52. Nf3 {[%emt 0:00:00]} Kxc6 {[%emt 0:00:00]} 53. Nxh4 {[%emt 0:00:00]} Bxf4 {[%emt 0:00:00]} 54. Ng6 {[%emt 0:00:00]} Bh6 {[%emt 0:00:00]} 55. h4 {[%emt 0:00:00]} Kxb7 {[%emt 0:00:00]} 56. Ne5 {[%emt 0:00:00]} Nc6 {[%emt 0:00:00]} 57. Nf7 {[%emt 0:00:00]} Bg7 {[%emt 0:00:00]} 58. h5 {[%emt 0:00:00]} Kc7 {[%emt 0:00:00]} 59. h6 {[%emt 0:00:00]} Bf6 {[%emt 0:00:21]} 60. h7 {[%emt 0:00:00]} Ne5 {[%emt 0:00:40]} 61. h8=Q {[%emt 0:00:00]} Bxh8 {[%emt 0:00:11]} 62. Nxh8 {[%emt 0:00:00]} Kd6 {[%emt 0:00:36]} 63. Ke3 {[%emt 0:00:00]} Ke7 {[%emt 0:00:19]} 64. Kd4 {[%emt 0:00:00]} Kf6 {[%emt 0:00:18]} 65. Kc5 {[%emt 0:00:00]} Nd3+ {[%emt 0:00:42]} 66. Kd6 {[%emt 0:00:00]} Nf4 {[%emt 0:00:36]} 0-1

[Event "Skalica Open 2019"]
[Site "Skalica"]
[Date "2019.08.26"]
[Round "3.18"]
[White "Kovarikova, Maria"]
[Black "Jun, Rudolf Jr."]
[Result "0-1"]
[ECO "B24"]
[WhiteElo "1854"]
[BlackElo "2114"]
[Annotator "NA"]
[PlyCount "92"]
[EventDate "2019.08.25"]
[EventType "swiss"]
[EventCountry "SVK"]
[SourceTitle "playchess.com"]
[Source "ChessBase"]
[SourceQuality "1"]
[TimeControl "40/5400+30:1800+30"]

1. e4 {[%emt 0:00:00]} c5 {[%emt 0:05:33]} 2. Nc3 {[%emt 0:00:00]} Nc6 {[%emt 0:00:52]} 3. g3 {[%emt 0:00:00]} g6 {[%emt 0:00:07]} 4. Bg2 {[%emt 0:00:00]} Bg7 {[%emt 0:00:03]} 5. d3 {[%emt 0:00:03]} e6 {[%emt 0:00:29]} 6. f4 {[%emt 0:00:06]} Nge7 {[%emt 0:00:13]} 7. Nf3 {[%emt 0:00:22]} d6 {[%emt 0:00:06]} 8. O-O {[%emt 0:00:19]} O-O {[%emt 0:00:04]} 9. Be3 {[%emt 0:00:35]} a6 {[%emt 0:00:33]} 10. Rb1 {[%emt 0:14:08]} b5 {[%emt 0:03:37]} 11. g4 {[%emt 0:13:36]} f5 {[%emt 0:00:55]} 12. h3 {[%emt 0:27:50]} Bb7 {[%emt 0:02:00]} 13. exf5 {[%emt 0:06:53]} gxf5 {[%emt 0:03:42]} 14. Ne2 {[%emt 0:13:17]} Nd5 {[%emt 0:01:05]} 15. Bd2 {[%emt 0:04:01]} Nf6 {[%emt 0:00:46]} 16. g5 {[%emt 0:02:48]} Nd5 {[%emt 0:00:57]} 17. c4 {[%emt 0:06:32]} Nc7 {[%emt 0:04:08]} 18. h4 {[%emt 0:03:04]} d5 {[%emt 0:00:57]} 19. cxb5 {[%emt 0:01:12]} axb5 {[%emt 0:07:44]} 20. h5 {[%emt 0:01:11]} Bh8 {[%emt 0:01:45]} 21. a3 {[%emt 0:02:49]} c4 {[%emt 0:01:59]} 22. d4 {[%emt 0:00:24]} Ne8 {[%emt 0:01:31]} 23. Bc3 {[%emt 0:00:53]} Nd6 {[%emt 0:00:16]} 24. Qe1 {[%emt 0:01:10]} Ne4 {[%emt 0:00:30]} 25. Kh1 {[%emt 0:00:35]} Qe7 {[%emt 0:01:35]} 26. Rg1 {[%emt 0:00:08]} Ra4 {[%emt 0:04:29]} 27. Bh3 {[%emt 0:00:23]} b4 {[%emt 0:01:13]} 28. axb4 {[%emt 0:00:16]} Nxb4 {[%emt 0:00:24]} 29. Bxb4 {[%emt 0:00:13]} Rxb4 {[%emt 0:00:04]} 30. h6 {[%emt 0:01:36]} Rb3 {[%emt 0:01:35]} 31. Nc3 {[%emt 0:00:31]} Bc6 {[%emt 0:00:20]} 32. g6 {[%emt 0:00:11]} hxg6 {[%emt 0:00:50]} 33. Rxg6+ {[%emt 0:00:40]} Kh7 {[%emt 0:01:08]} 34. Rg1 {[%emt 0:00:30]} Bf6 {[%emt 0:00:36]} 35. Nxe4 {[%emt 0:00:34]} dxe4 {[%emt 0:01:01]} 36. Rg7+ {[%emt 0:00:32]} Bxg7 {[%emt 0:00:27]} 37. Ng5+ {[%emt 0:00:12]} Kg8 {[%emt 0:01:22]} 38. h7+ {[%emt 0:00:46]} Kh8 {[%emt 0:00:24]} 39. Qh4 {[%emt 0:00:33]} e3+ {[%emt 0:01:36]} 40. Kh2 {[%emt 0:00:19]} Qf6 {[%emt 0:00:29]} 41. Rg1 {[%emt 0:30:42]} Rxb2+ {[%emt 0:30:34]} 42. Bg2 {[%emt 0:00:07]} Qh6 {[%emt 0:00:45]} 43. Qxh6 {[%emt 0:00:18]} Bxh6 {[%emt 0:00:05]} 44. Kh3 {[%emt 0:00:20]} Bxg2+ {[%emt 0:00:08]} 45. Rxg2 {[%emt 0:00:17]} Rxg2 {[%emt 0:00:06]} 46. Kxg2 {[%emt 0:00:02]} Bxg5 {[%emt 0:00:08]} 0-1